[Event "Grand Prix Romania 1st Stage 2024"]
[Site "Bucuresti"]
[Date "2024.03.23"]
[Round "3.3"]
[White "Sarana, Alexey"]
[Black "Patrascu, Catalin-Lucian"]
[Result "1-0"]
[ECO "D27"]
[WhiteElo "2699"]
[BlackElo "2298"]
[Annotator "TA"]
[PlyCount "64"]
[EventDate "2024.03.20"]
[EventType "swiss"]
[EventCountry "ROU"]
[SourceTitle "playchess.com"]
[Source "ChessBase"]
[SourceQuality "1"]
[TimeControl "900+5"]

{[%evp 19,64,25,19,19,27,0,0,14,11,0,107,-31,21,0,14,18,111,116,101,100,144,92,333,331,321,262,495,471,575,568,577,566,582,585,570,525,556,525,513,531,671,624,869,623,853,843,786]} 1. d4 {[%emt 0:00:01]} d5 {[%emt 0:00:03]} 2. c4 {[%emt 0:00:02]} dxc4 {[%emt 0:00:02]} 3. Nf3 {[%emt 0:00:04]} Nf6 {[%emt 0:00:01]} 4. e3 {[%emt 0:00:01]} e6 {[%emt 0:00:02]} 5. Bxc4 {[%emt 0:00:02]} a6 {[%emt 0:00:01]} 6. O-O {[%emt 0:00:03]} c5 {[%emt 0:00:01]} 7. Nc3 {[%emt 0:00:06]} Nbd7 {[%emt 0:00:08]} 8. a4 {[%emt 0:00:12]} cxd4 {[%emt 0:02:01]} 9. exd4 {[%emt 0:00:02]} Be7 {[%emt 0:00:09]} 10. Bg5 {[%emt 0:00:27]} O-O {[%emt 0:00:11]} 11. Qd3 {[%emt 0:00:02]} b6 {[%emt 0:01:27]} 12. Rfe1 {[%emt 0:00:09]} Bb7 {[%emt 0:00:04]} 13. Rad1 {[%emt 0:00:04] The position is equal.} Qc7 {[%emt 0:02:37]} 14. Ba2 {[%emt 0:03:07]} Rad8 {[%emt 0:00:51]} (14... Bb4 $11) 15. Bb1 {[%emt 0:00:09] White is more active.} (15. d5 $16 Bc5 16. dxe6 fxe6 17. Bxe6+ Kh8 18. Qf5) 15... g6 {[%emt 0:01:38]} (15... h6 $15 16. Bh4 Bd6) 16. h3 {[%emt 0:03:46]} Rfe8 {[%emt 0:00:38]} 17. Ba2 {[%emt 0:00:18]} Nh5 {[%emt 0:03:31]} (17... Rc8 $11 {keeps the balance.}) 18. Bxe7 {[%emt 0:00:02]} Rxe7 {[%emt 0:00:01]} 19. d5 {[%emt 0:00:02][%cal Bd4d5,Bd5e6][%mdl 32]} Nc5 {[%emt 0:00:24]} 20. Qe3 {[%emt 0:00:03]} (20. Qd4 $142) 20... Ng7 $2 {[%emt 0:02:27] [#] Black cannot hold the game after this.} (20... Rdd7 $16 {was necessary.}) 21. b4 $18 {[%emt 0:00:16]} Nf5 {[%emt 0:00:02]} 22. Qc1 {[%emt 0:00:02]} Nd7 {[%emt 0:00:27]} (22... exd5 {might work better.} 23. bxc5 Rxe1+ 24. Nxe1 Qxc5) 23. dxe6 {[%emt 0:00:56] White is clearly winning.} Bxf3 {[%emt 0:00:08]} 24. Nd5 {[%emt 0:00:06]} Qxc1 {[%emt 0:00:05]} 25. Nxe7+ {[%emt 0:00:02]} Nxe7 {[%emt 0:00:01]} 26. Rxc1 {[%emt 0:00:02]} ({Less strong is} 26. exf7+ Kf8 27. Rxc1 Bd5 28. Rxe7 Bxa2 $14) 26... fxe6 {[%emt 0:00:08]} 27. Bxe6+ {[%emt 0:00:02]} Kf8 {[%emt 0:00:02]} 28. gxf3 {[%emt 0:00:03]} Nf6 {[%emt 0:00:02]} 29. Red1 {[%emt 0:00:05]} Re8 {[%emt 0:00:05]} 30. Rd6 {[%emt 0:00:02]} a5 {[%emt 0:00:05]} 31. b5 {[%emt 0:00:02]} Nh5 {[%emt 0:00:10]} 32. Bg4 {[%emt 0:00:01]} Ng7 {[%emt 0:00:13] Weighted Error Value: White=0.33/Black=0.69.  Loses game:     	---       	Black=1      Mistake:       	White=2     	Black=4      Inaccurate:     	White=1     	Black=2      OK:         	White=5     	Black=4      Best:        	White=3     	Black=2} 1-0

[Event "Grand Prix Romania 1st Stage 2024"]
[Site "Bucuresti"]
[Date "2024.03.23"]
[Round "3.4"]
[White "Antal, Hunor-Zoltan"]
[Black "Deac, Bogdan-Daniel"]
[Result "0-1"]
[ECO "A10"]
[WhiteElo "2272"]
[BlackElo "2690"]
[Annotator "TA"]
[PlyCount "64"]
[EventDate "2024.03.20"]
[EventType "swiss"]
[EventCountry "ROU"]
[SourceTitle "playchess.com"]
[Source "ChessBase"]
[SourceQuality "1"]
[TimeControl "900+5"]

{[%evp 9,64,0,11,2,6,4,5,0,-6,-16,-4,-7,-5,-16,0,5,12,0,11,0,0,0,-2,-34,-32,-27,-32,-91,-88,-106,-90,-134,-136,-243,-229,-237,-228,-707,-685,-852,-650,-985,-966,-769,-646,-916,-500,-488,-452,-454,-350,-660,-641,-612,-616,-1104,-1111]} 1. c4 {[%emt 0:00:06]} e6 {[%emt 0:00:19]} 2. Nf3 {[%emt 0:00:04]} b6 {[%emt 0:00:26]} 3. e3 {[%emt 0:00:33]} Bb7 {[%emt 0:00:13]} 4. Nc3 {[%emt 0:00:02]} Nf6 {[%emt 0:03:15]} 5. b3 {[%emt 0:00:10]} g6 {[%emt 0:00:34]} 6. Bb2 {[%emt 0:00:08]} Bg7 {[%emt 0:00:02]} 7. d4 {[%emt 0:00:04]} O-O {[%emt 0:01:07]} 8. Bd3 {[%emt 0:00:02] Die Stellung ist ausgeglichen.} c5 {[%emt 0:00:01]} 9. dxc5 {[%emt 0:02:33]} bxc5 {[%emt 0:00:15]} 10. O-O {[%emt 0:00:07]} d6 {[%emt 0:00:14]} 11. Qe2 {[%emt 0:00:06]} Qb6 {[%emt 0:01:51]} 12. Rfd1 {[%emt 0:02:42]} Rd8 {[%emt 0:00:07]} 13. Rac1 {[%emt 0:01:15]} Nbd7 {[%emt 0:01:28]} 14. Rc2 {[%emt 0:00:49]} Bc6 {[%emt 0:01:17]} 15. Rcd2 {[%emt 0:00:25]} Qb7 {[%emt 0:00:03]} 16. Bb1 {[%emt 0:01:57]} d5 {[%emt 0:01:36]} 17. cxd5 {[%emt 0:00:24]} exd5 {[%emt 0:00:03]} 18. Rc1 {[%emt 0:00:40]} (18. Bd3 $15) 18... Re8 $17 {[%emt 0:01:40][%cal Od5d4]} 19. Qd1 {[%emt 0:00:46]} Bh6 {[%emt 0:00:36][%cal Od5d4] Droht ...d4! und aus.} 20. Na4 {[%emt 0:01:29] [#]} Bxa4 {[%emt 0:01:17]} ({Auf keinen Fall} 20... d4 21. Nxc5 Nxc5 22. Nxd4 $15) 21. Bxf6 {[%emt 0:00:53]} (21. bxa4 $17 d4 22. exd4) 21... Nxf6 $19 {[%emt 0:00:06]} 22. bxa4 {[%emt 0:00:04] [#]} d4 $1 {[%emt 0:00:01][%mdl 512]} 23. Rxc5 $2 {[%emt 0:00:57]} (23. exd4 Bxd2 24. Qxd2) (23. Nxd4 cxd4) 23... dxe3 {[%emt 0:00:02]} 24. Rb5 {[%emt 0:00:40]} Qc7 {[%emt 0:00:06]} 25. Re2 {[%emt 0:00:07]} exf2+ {[%emt 0:00:09]} 26. Kxf2 {[%emt 0:00:04]} Ng4+ {[%emt 0:00:02]} 27. Kg1 {[%emt 0:00:01]} Be3+ {[%emt 0:00:06]} 28. Kh1 {[%emt 0:00:08]} Nf2+ {[%emt 0:00:10]} 29. Rxf2 {[%emt 0:00:02]} Bxf2 {[%emt 0:00:02]} 30. Rb2 $2 {[%emt 0:00:09]} (30. Qf1 Bb6 31. Bd3) 30... Rad8 {[%emt 0:00:10] Schwarz steht klar auf Gewinn.} 31. Qf1 {[%emt 0:00:01]} Bb6 {[%emt 0:00:09]} 32. Bd3 {[%emt 0:00:09] [#] Lässt Qc4 nicht zu} Rxd3 $1 {[%emt 0:00:09][%mdl 512] Gewichteter Fehlerwert: Weiß=1.06/Schwarz=0.47.  Fehler:       	Weiß=4     	---        Ungenau:       	Weiß=2     	---        OK:         	Weiß=3     	Schwarz=10    Bester:       	Weiß=1     	Schwarz=1} 0-1

[Event "Grand Prix Romania 1st Stage 2024"]
[Site "Bucuresti"]
[Date "2024.03.23"]
[Round "3.5"]
[White "Safarli, Eltaj"]
[Black "Prisacaru, Stefan-Emilian"]
[Result "1-0"]
[ECO "B14"]
[WhiteElo "2614"]
[BlackElo "2273"]
[Annotator "TA"]
[PlyCount "69"]
[EventDate "2024.03.20"]
[EventType "swiss"]
[EventCountry "ROU"]
[SourceTitle "playchess.com"]
[Source "ChessBase"]
[SourceQuality "1"]
[TimeControl "900+5"]

{[%evp 27,69,26,23,19,28,-49,-47,-53,-54,-68,19,0,0,0,0,-17,0,-21,-17,-20,0,0,0,0,-3,-8,0,-403,-17,-26,60,58,79,79,79,79,140,34,29993,29990,29994,29995,29996,29997]} 1. e4 {[%emt 0:00:03]} c6 {[%emt 0:00:01]} 2. d4 {[%emt 0:00:03]} d5 {[%emt 0:00:01]} 3. exd5 {[%emt 0:00:01]} cxd5 {[%emt 0:00:01]} 4. c4 {[%emt 0:00:03]} Nf6 {[%emt 0:00:01]} 5. Nc3 {[%emt 0:00:01]} g6 {[%emt 0:00:01]} 6. Qb3 {[%emt 0:00:14]} Bg7 {[%emt 0:00:12]} 7. cxd5 {[%emt 0:00:01]} O-O {[%emt 0:00:02]} 8. Be2 {[%emt 0:00:07]} Qb6 {[%emt 0:01:45]} 9. Qxb6 {[%emt 0:00:14]} axb6 {[%emt 0:00:01]} 10. Bf3 {[%emt 0:00:03]} Na6 {[%emt 0:00:40]} 11. Nge2 {[%emt 0:00:03]} Nb4 {[%emt 0:01:28]} 12. O-O {[%emt 0:00:03]} Rd8 {[%emt 0:00:44]} 13. d6 {[%emt 0:00:02]} Rxd6 {[%emt 0:01:39]} 14. Bf4 {[%emt 0:00:03]} Rd7 {[%emt 0:00:23]} 15. Rfd1 {[%emt 0:00:09]} Nfd5 {[%emt 0:03:45]} 16. Be5 {[%emt 0:00:05]} (16. Bg3 $11) 16... Nxc3 $1 $15 {[%emt 0:01:28]} 17. bxc3 {[%emt 0:00:18] Schwarz steht etwas besser.} Bxe5 {[%emt 0:00:26]} 18. dxe5 {[%emt 0:00:02] [#] Schwarz muss nun Rxd7 beachten.} Rxd1+ ({Lieber nicht} 18... Nxa2 19. Rxd7 Bxd7 20. Bd5 $16) (18... Nc6 $15 19. Bxc6 bxc6) 19. Rxd1 $11 {[%emt 0:00:02]} Nc6 {[%emt 0:00:46] Gegen Rd8+ gerichtet.} 20. Bxc6 {[%emt 0:00:46]} bxc6 {[%emt 0:00:01][%mdl 4096] Endspiel. KRB-KRN} 21. Rd8+ {[%emt 0:00:10]} Kg7 {[%emt 0:00:00]} 22. f3 {[%emt 0:00:05]} Rxa2 {[%emt 0:00:38]} 23. Nd4 {[%emt 0:00:03]} Be6 {[%emt 0:00:38]} 24. Nxc6 {[%emt 0:01:05]} Rc2 {[%emt 0:00:53]} 25. Nxe7 {[%emt 0:01:59]} Rxc3 {[%emt 0:00:01]} 26. h4 {[%emt 0:00:02]} Rc7 {[%emt 0:00:29]} 27. Rg8+ {[%emt 0:00:03]} Kh6 {[%emt 0:00:02]} 28. Re8 {[%emt 0:00:01]} Bd7 {[%emt 0:00:53]} (28... g5 $11) 29. Rb8 $1 $14 {[%emt 0:00:17]} b5 {[%emt 0:00:23]} 30. Ng8+ {[%emt 0:00:47]} Kg7 {[%emt 0:00:02] ...Rc8 ist eine echte Drohung.} 31. Nf6 {[%emt 0:00:05] Weiss droht Rg8+ und Matt.} Rc1+ {[%emt 0:00:10] [#]} (31... Rc8 $142 32. Rb6 (32. Nxd7 $2 Rxb8 33. Kf1 b4 $19) 32... Be6) 32. Kh2 {[%emt 0:00:14] Weiß steht aktiver.} ({Der einzige Zug:} 32. Kf2 $1 $16 Bc8 33. g4 (33. Rxb5 Rc2+ 34. Kg3 Re2 $16)) 32... Bc6 $2 {[%emt 0:00:03][%mdl 8192]} (32... Rc8 $14 33. Rb6 (33. Nxd7 $2 {verliert.} Rxb8 34. Nxb8 b4 $19) 33... Be6) 33. Rg8+ {[%emt 0:00:08] Weiß setzt Matt.} Kh6 {[%emt 0:00:01]} 34. g4 {[%emt 0:00:02][%csl Gh4][%cal Rg4g5]} Rc2+ {[%emt 0:00:08]} 35. Kg3 {[%emt 0:00:01] Weiß hat die Chance genutzt.   Gewichteter Fehlerwert: Weiß=0.45/Schwarz=0.53.  Verlustzug:     	---       	Schwarz=1     Gewinn verpasst:   	---       	Schwarz=1     Fehler:       	Weiß=2     	Schwarz=3     OK:         	Weiß=6     	Schwarz=4     Bester:       	Weiß=3     	---        Stark:        	Weiß=1     	Schwarz=1} 1-0

[Event "Grand Prix Romania 1st Stage 2024"]
[Site "Bucuresti"]
[Date "2024.03.23"]
[Round "3.6"]
[White "Obada, Ema"]
[Black "Sokolov, Ivan"]
[Result "0-1"]
[ECO "C47"]
[WhiteElo "1976"]
[BlackElo "2590"]
[Annotator "RC"]
[PlyCount "112"]
[EventDate "2024.03.20"]
[EventType "swiss"]
[EventCountry "ROU"]
[SourceTitle "playchess.com"]
[Source "ChessBase"]
[SourceQuality "1"]
[TimeControl "900+5"]

1. e4 {[%emt 0:00:03]} e5 {[%emt 0:00:03]} 2. Nf3 {[%emt 0:00:03]} Nc6 {[%emt 0:00:02]} 3. Nc3 {[%emt 0:00:03]} Nf6 {[%emt 0:00:06]} 4. d4 {[%emt 0:00:02]} exd4 {[%emt 0:00:03]} 5. Nxd4 {[%emt 0:00:02]} Bb4 {[%emt 0:00:04]} 6. Nxc6 {[%emt 0:00:03]} bxc6 {[%emt 0:00:01]} 7. Bd3 {[%emt 0:00:03]} O-O {[%emt 0:00:04]} 8. O-O {[%emt 0:00:03]} Re8 {[%emt 0:00:03]} 9. Qf3 {[%emt 0:03:20]} Bd6 {[%emt 0:00:40]} 10. h3 {[%emt 0:00:36]} Rb8 {[%emt 0:00:05]} 11. Rb1 {[%emt 0:00:35]} Be5 {[%emt 0:00:08]} 12. Bf4 {[%emt 0:00:25]} Qe7 {[%emt 0:00:19]} 13. Rfe1 {[%emt 0:00:42]} d6 {[%emt 0:00:21]} 14. Bd2 {[%emt 0:00:42]} h6 {[%emt 0:00:37]} 15. b3 {[%emt 0:01:32]} Nd7 {[%emt 0:00:36]} 16. Nd1 {[%emt 0:01:03]} Nc5 {[%emt 0:01:10]} 17. Ne3 {[%emt 0:00:17]} Bf6 {[%emt 0:01:35]} 18. Ng4 {[%emt 0:00:44]} Bg5 {[%emt 0:00:03]} 19. Bc3 {[%emt 0:00:07]} Be6 {[%emt 0:01:38]} 20. Bd4 {[%emt 0:00:33]} Nxd3 {[%emt 0:00:14]} 21. cxd3 {[%emt 0:00:28]} Qd7 {[%emt 0:00:04]} 22. Ne3 {[%emt 0:00:14]} a5 {[%emt 0:00:04]} 23. Qg3 {[%emt 0:00:25]} Qd8 {[%emt 0:01:01]} 24. Nc4 {[%emt 0:00:36]} Ra8 {[%emt 0:00:31]} 25. Bc3 {[%emt 0:00:41]} a4 {[%emt 0:01:01]} 26. b4 {[%emt 0:00:49]} a3 {[%emt 0:00:02]} 27. Re2 {[%emt 0:01:04]} Bf6 {[%emt 0:00:40]} 28. Bxf6 {[%emt 0:00:24]} Qxf6 {[%emt 0:00:02]} 29. e5 {[%emt 0:00:01]} dxe5 {[%emt 0:00:06]} 30. Rxe5 {[%emt 0:00:25]} Bxc4 {[%emt 0:00:23]} 31. Rxe8+ {[%emt 0:00:01]} Rxe8 {[%emt 0:00:01]} 32. dxc4 {[%emt 0:00:02]} Re2 {[%emt 0:00:02]} 33. Rb3 {[%emt 0:00:21]} Rxa2 {[%emt 0:00:05]} 34. Rf3 {[%emt 0:00:44]} Qd4 {[%emt 0:00:34]} 35. Qxc7 {[%emt 0:00:04]} Qxc4 {[%emt 0:01:28]} 36. Qc8+ {[%emt 0:00:07]} Kh7 {[%emt 0:00:02]} 37. Qf5+ {[%emt 0:00:14]} g6 {[%emt 0:00:03]} 38. Qf6 {[%emt 0:00:27]} Qe6 {[%emt 0:01:23]} 39. Qc3 {[%emt 0:00:04]} h5 {[%emt 0:00:35]} 40. Rf6 {[%emt 0:00:04]} Rc2 {[%emt 0:00:42]} 41. Qa1 {[%emt 0:00:07]} Qe7 {[%emt 0:00:07]} 42. Rf3 {[%emt 0:00:05]} a2 {[%emt 0:00:04]} 43. Ra3 {[%emt 0:00:03]} Re2 {[%emt 0:00:21]} 44. Qd4 {[%emt 0:00:03]} Re4 {[%emt 0:00:14]} 45. Qc3 {[%emt 0:00:08]} Re1+ {[%emt 0:00:08]} 46. Kh2 {[%emt 0:00:01]} Qd6+ {[%emt 0:00:03]} 47. g3 {[%emt 0:00:01]} Re2 {[%emt 0:00:10]} 48. Qf3 {[%emt 0:00:08]} Qe7 {[%emt 0:00:12]} 49. Ra8 {[%emt 0:00:06]} Rc2 {[%emt 0:00:03]} 50. Kg2 {[%emt 0:00:08]} Qe6 {[%emt 0:00:01]} 51. Kh2 {[%emt 0:00:05]} Kg7 {[%emt 0:00:03]} 52. Ra6 {[%emt 0:00:04]} Qf6 {[%emt 0:00:05]} 53. Qxf6+ Kxf6 {[%emt 0:00:01]} 54. b5 {[%emt 0:00:05]} Rxf2+ {[%emt 0:00:04]} 55. Kg1 {[%emt 0:00:00]} Rc2 {[%emt 0:00:02]} 56. bxc6 {[%emt 0:00:12]} Rc1+ {[%emt 0:00:02]} 0-1

[Event "Grand Prix Romania 1st Stage 2024"]
[Site "Bucuresti"]
[Date "2024.03.23"]
[Round "3.7"]
[White "Mamedov, Rauf"]
[Black "Buzbuchi, Ionut"]
[Result "1-0"]
[ECO "B50"]
[WhiteElo "2651"]
[BlackElo "2035"]
[Annotator "TA"]
[PlyCount "45"]
[EventDate "2024.03.20"]
[EventType "swiss"]
[EventCountry "ROU"]
[SourceTitle "playchess.com"]
[Source "ChessBase"]
[SourceQuality "1"]
[TimeControl "900+5"]

{[%evp 12,45,42,50,73,39,47,33,46,49,30,20,89,57,71,52,45,48,40,56,138,126,127,139,224,229,311,303,298,311,678,689,676,649,671,673]} 1. e4 {[%emt 0:00:02]} c5 {[%emt 0:00:01]} 2. Nf3 {[%emt 0:00:02]} d6 {[%emt 0:00:02]} 3. Nc3 {[%emt 0:00:02]} g6 {[%emt 0:00:04]} 4. d4 {[%emt 0:00:04]} cxd4 {[%emt 0:00:01]} 5. Qxd4 {[%emt 0:00:00]} Nf6 {[%emt 0:00:04]} 6. e5 {[%emt 0:00:02]} Nc6 {[%emt 0:00:03]} 7. Bb5 {[%emt 0:00:01]} dxe5 {[%emt 0:00:18]} 8. Bxc6+ {[%emt 0:00:21]} (8. Qxe5 $6 Bd7 9. Qg3 Bg7 $11) 8... bxc6 {[%emt 0:00:02]} 9. Qxd8+ {[%emt 0:00:02]} Kxd8 {[%emt 0:00:03] White is slightly better.} 10. Nxe5 {[%emt 0:00:00]} Ke8 {[%emt 0:00:18]} 11. O-O {[%emt 0:01:10]} Bd7 {[%emt 0:04:37]} (11... Nd5 $11) 12. Re1 {[%emt 0:00:10] White has more active pieces. The black rooks are passive.} Nd5 {[%emt 0:00:20]} 13. Ne4 {[%emt 0:00:11] A dynamic duo of knights.} Bg7 {[%emt 0:00:34]} 14. Nxd7 {[%emt 0:02:08]} Kxd7 {[%emt 0:00:02]} 15. c4 $36 {[%emt 0:00:08][%cal Oe1d1][%mdl 2048] Rd1! is the strong threat. Black is under pressure.} Nc7 {[%emt 0:00:59]} (15... Nb6 $14) 16. Nc5+ $16 {[%emt 0:00:21]} Kc8 {[%emt 0:00:35] [#]} 17. Bf4 $1 {[%emt 0:00:46]} ({But not} 17. Rxe7 $6 Bf8 18. Bg5 (18. Re5 f6 $17) 18... h6 $11) 17... e6 {[%emt 0:00:34]} (17... Re8 $16 {was necessary.}) 18. Rad1 $18 {[%emt 0:00:44]} Rd8 {[%emt 0:01:09]} 19. Rxd8+ {[%emt 0:00:18]} Kxd8 {[%emt 0:00:01]} 20. Rd1+ {[%emt 0:00:01]} Kc8 $2 {[%emt 0:00:02] [#]} (20... Nd5 21. cxd5 cxd5) 21. Bxc7 {[%emt 0:00:02] White is clearly winning.} Kxc7 {[%emt 0:00:03]} 22. Rd7+ {[%emt 0:00:01]} Kb6 {[%emt 0:00:26]} 23. b4 {[%emt 0:00:01] Weighted Error Value: White=0.06 (flawless) /Black=0.58.  Mistake:       	---       	Black=4      Inaccurate:     	White=2     	Black=1      OK:         	White=7     	Black=2      Best:        	White=3     	---        Strong:       	White=1     	---} 1-0

[Event "Grand Prix Romania 1st Stage 2024"]
[Site "Bucuresti"]
[Date "2024.03.23"]
[Round "3.8"]
[White "Maximov, Oleg"]
[Black "Korobov, Anton"]
[Result "0-1"]
[ECO "A05"]
[WhiteElo "2185"]
[BlackElo "2662"]
[Annotator "TA"]
[PlyCount "70"]
[EventDate "2024.03.20"]
[EventType "swiss"]
[EventCountry "ROU"]
[SourceTitle "playchess.com"]
[Source "ChessBase"]
[SourceQuality "1"]
[TimeControl "900+5"]

{[%evp 11,70,0,1,-11,20,16,14,28,27,0,0,-52,-51,-58,0,-14,-2,-6,-8,-14,-10,-47,-51,-124,-125,-113,-106,-150,-110,-270,-281,-281,-251,-372,-171,-155,-109,-106,-101,-133,-98,-261,-249,-229,-177,-173,-159,-158,-167,-197,-207,-240,-174,-416,-420,-472,-414,-1860,-1857,-1477,-1467]} 1. e4 {[%emt 0:00:06]} c5 {[%emt 0:00:01]} 2. Nf3 {[%emt 0:00:10]} d6 {[%emt 0:00:02]} 3. g3 {[%emt 0:00:05]} Nf6 {[%emt 0:00:11]} 4. d3 {[%emt 0:00:01]} g6 {[%emt 0:00:23]} 5. Bg2 {[%emt 0:00:02]} Bg7 {[%emt 0:00:01]} 6. O-O {[%emt 0:00:03]} O-O {[%emt 0:00:03]} 7. e5 {[%emt 0:00:19]} dxe5 {[%emt 0:00:43]} 8. Nxe5 {[%emt 0:00:02]} Nfd7 {[%emt 0:00:15]} 9. Nc4 {[%emt 0:00:29] The position is equal.} Nc6 {[%emt 0:00:11]} 10. Nc3 {[%emt 0:00:17]} Nb6 {[%emt 0:00:50]} 11. Ne4 {[%emt 0:01:54]} ({White should play} 11. Ne3 $11) 11... Nxc4 $15 {[%emt 0:00:15]} 12. dxc4 {[%emt 0:00:00]} Qb6 {[%emt 0:00:12]} (12... Qxd1 $15 13. Rxd1 Bg4) 13. c3 {[%emt 0:00:13]} Ne5 {[%emt 0:00:28][%cal Of8d8]} 14. Qe2 {[%emt 0:02:24]} Bg4 {[%emt 0:00:54]} 15. f3 {[%emt 0:00:13]} Bf5 $36 {[%emt 0:01:07][%mdl 2048] Black is pushing.} 16. b3 {[%emt 0:01:36]} Rad8 {[%emt 0:00:24]} 17. g4 {[%emt 0:01:42]} (17. Be3 $15) 17... Bxe4 $17 {[%emt 0:00:22]} 18. Qxe4 {[%emt 0:00:01]} Nc6 {[%emt 0:00:19][%cal Ob6a5]} 19. Qe3 {[%emt 0:00:21]} Nb4 {[%emt 0:00:30]} 20. Rf2 {[%emt 0:00:47] Prevents Nc2.} (20. Qe2 $17) 20... Rd3 $19 {[%emt 0:00:51]} 21. Qxe7 {[%emt 0:00:07] [#]} Bf6 $1 {[%emt 0:00:10]} ({Less strong is} 21... Bxc3 22. Bb2 $17) ({Weaker is} 21... Rd1+ 22. Rf1 Rxf1+ (22... Bxc3 23. Rxd1 Nc6 24. Qe2 $11) 23. Bxf1 $17) 22. Qe4 {[%emt 0:00:11]} (22. Qe2 $142 Rxc3 (22... Bxc3 $2 23. Bb2 $19) 23. Bb2) 22... Bxc3 {[%emt 0:00:52]} (22... Qd8 $142 {Threatens to win with ...Re8.} 23. Bf1 Re8 (23... Rxc3 $2 24. Bb2 $19)) 23. Bb2 {[%emt 0:00:12]} Bd4 {[%emt 0:00:44]} ({Black should try} 23... Bxb2 24. Rxb2 Qf6) 24. Bxd4 $17 {[%emt 0:00:04]} Rxd4 {[%emt 0:00:01]} 25. Qe3 {[%emt 0:00:26]} Qf6 {[%emt 0:00:06]} 26. Raf1 $2 {[%emt 0:00:47]} (26. f4 $17) 26... Nd3 $19 {[%emt 0:00:10]} 27. Rd2 {[%emt 0:00:34]} Nf4 {[%emt 0:00:02]} 28. Rfd1 {[%emt 0:00:05]} Rfd8 {[%emt 0:00:11]} 29. Bf1 {[%emt 0:00:18]} b6 {[%emt 0:00:20] Black is more active.} 30. Rxd4 {[%emt 0:00:25]} cxd4 {[%emt 0:00:03]} 31. Qe4 {[%emt 0:00:03]} d3 {[%emt 0:00:36] ...Rd6 would now be deadly.} 32. Bxd3 $2 {[%emt 0:00:31] [#]} (32. Qe3 {was forced.}) 32... Rd4 $1 {[%emt 0:00:06]} 33. Qe8+ {[%emt 0:00:02]} Kg7 {[%emt 0:00:02]} 34. Bc2 {[%emt 0:00:02]} (34. Qe3 $142 Qd6 35. h4) 34... Rxd1+ {[%emt 0:00:05]} 35. Bxd1 {[%emt 0:00:02]} Qd4+ {[%emt 0:00:02] Weighted Error Value: White=0.60/Black=0.20 (precise) .  Loses game:     	White=1     	---        Mistake:       	White=6     	Black=3      Inaccurate:     	White=4     	Black=1      OK:         	White=4     	Black=11     Best:        	White=4     	Black=4      Strong:       	---       	Black=2} 0-1